[Event "2nd Irena Warakomska Memorial-A"]
[Site "Suwalki"]
[Date "2018.08.03"]
[Round "4"]
[White "Grebeniuk, Semen"]
[Black "Vetoshko, Volodymyr"]
[Result "0-1"]
[ECO "A08"]
[WhiteElo "2306"]
[BlackElo "2525"]
[Annotator "RC"]
[PlyCount "88"]
[EventDate "2018.08.01"]
[EventType "swiss"]
[EventCountry "POL"]
[SourceTitle "playchess.com"]
[Source "ChessBase"]
[SourceQuality "1"]
[TimeControl "40/5400+30:1800+30"]

1. Nf3 {[%emt 0:00:00]} Nf6 {[%emt 0:00:00]} 2. g3 {[%emt 0:00:38]} d5 {[%emt 0:00:08]} 3. Bg2 {[%emt 0:00:15]} e6 {[%emt 0:00:31]} 4. O-O {[%emt 0:00:27]} Be7 {[%emt 0:00:06]} 5. d3 {[%emt 0:00:56]} c5 {[%emt 0:00:12]} 6. Nbd2 {[%emt 0:00:25]} Nc6 {[%emt 0:00:10]} 7. e4 {[%emt 0:00:27]} O-O {[%emt 0:00:17]} 8. Re1 {[%emt 0:00:10]} b5 {[%emt 0:02:29]} 9. e5 {[%emt 0:00:39]} Nd7 {[%emt 0:00:24]} 10. Nf1 {[%emt 0:00:10]} a5 {[%emt 0:01:21]} 11. h4 {[%emt 0:00:16]} b4 {[%emt 0:02:35]} 12. Bf4 {[%emt 0:01:38]} Ba6 {[%emt 0:01:18]} 13. Ne3 {[%emt 0:25:13]} Rc8 {[%emt 0:08:29]} 14. c4 {[%emt 0:09:34]} bxc3 {[%emt 0:05:08]} 15. bxc3 {[%emt 0:00:08]} d4 {[%emt 0:01:54]} 16. Nc4 {[%emt 0:05:06]} dxc3 {[%emt 0:02:06]} 17. Rc1 {[%emt 0:06:42]} Nb6 {[%emt 0:15:55]} 18. Nxb6 {[%emt 0:03:46]} Qxb6 {[%emt 0:00:15]} 19. Rxc3 {[%emt 0:00:44]} Nb4 {[%emt 0:09:25]} 20. a3 {[%emt 0:01:26]} Nd5 {[%emt 0:00:53]} 21. Rb3 {[%emt 0:00:11]} Qc7 {[%emt 0:03:20]} 22. Bg5 {[%emt 0:06:12]} c4 {[%emt 0:02:08]} 23. Bxe7 {[%emt 0:04:34]} Qxe7 {[%emt 0:02:20]} 24. dxc4 {[%emt 0:00:07]} Bxc4 {[%emt 0:00:08]} 25. Rb2 {[%emt 0:01:08]} Qxa3 {[%emt 0:00:21]} 26. Qa1 {[%emt 0:03:34]} Qc5 {[%emt 0:11:01]} 27. Nd2 {[%emt 0:01:20]} Nb4 {[%emt 0:06:18]} 28. Nxc4 {[%emt 0:04:04]} Qxc4 {[%emt 0:00:33]} 29. Bf1 {[%emt 0:17:26]} Qc5 {[%emt 0:02:11]} 30. Qa4 {[%emt 0:00:41]} Rfd8 {[%emt 0:01:21]} 31. Rb3 {[%emt 0:01:52]} Rd5 {[%emt 0:04:02]} 32. Re4 {[%emt 0:01:55]} Rxe5 {[%emt 0:04:25]} 33. Rc4 {[%emt 0:00:57]} Qf8 {[%emt 0:00:07]} 34. Rxc8 Qxc8 {[%emt 0:00:01]} 35. Rc3 {[%emt 0:00:53]} Rc5 {[%emt 0:01:02]} 36. Rxc5 {[%emt 0:00:33]} Qxc5 {[%emt 0:00:05]} 37. Qe8+ {[%emt 0:00:06]} Qf8 {[%emt 0:00:05]} 38. Qb5 {[%emt 0:00:05]} Qd8 {[%emt 0:00:14]} 39. Qb7 {[%emt 0:01:59]} h5 {[%emt 0:01:37]} 40. Bc4 {[%emt 0:00:00]} g6 {[%emt 0:00:00]} 41. Qe4 {[%emt 0:02:11]} Qd1+ {[%emt 0:04:11]} 42. Kg2 {[%emt 0:00:32]} Qd6 {[%emt 0:01:14]} 43. Qa8+ {[%emt 0:02:06]} Kg7 {[%emt 0:00:11]} 44. Kg1 {[%emt 0:00:02]} Qc6 {[%emt 0:00:41]} 0-1

[Event "2nd Irena Warakomska Memorial-A"]
[Site "Suwalki"]
[Date "2018.08.03"]
[Round "4"]
[White "Krzywda, Andrzej"]
[Black "Praczukowski, Stanislaw"]
[Result "1-0"]
[ECO "C18"]
[WhiteElo "2296"]
[BlackElo "2136"]
[Annotator "NA"]
[PlyCount "41"]
[EventDate "2018.08.01"]
[EventType "swiss"]
[EventCountry "POL"]
[SourceTitle "playchess.com"]
[Source "ChessBase"]
[SourceQuality "1"]
[TimeControl "40/5400+30:1800+30"]

1. e4 {[%emt 0:00:00]} e6 {[%emt 0:00:00]} 2. d4 {[%emt 0:00:00]} d5 {[%emt 0:00:04]} 3. Nc3 {[%emt 0:00:00]} Bb4 {[%emt 0:00:07]} 4. e5 {[%emt 0:00:00]} Ne7 {[%emt 0:00:06]} 5. a3 {[%emt 0:00:00]} Bxc3+ {[%emt 0:00:07]} 6. bxc3 {[%emt 0:00:03]} c5 {[%emt 0:00:09]} 7. Qg4 {[%emt 0:00:29]} Kf8 {[%emt 0:00:44]} 8. h4 {[%emt 0:06:21]} Qc7 {[%emt 0:00:34]} 9. Bd3 {[%emt 0:03:12]} cxd4 {[%emt 0:03:41]} 10. Ne2 {[%emt 0:00:32]} dxc3 {[%emt 0:01:10]} 11. f4 {[%emt 0:09:03]} b6 {[%emt 0:03:34]} 12. Rh3 {[%emt 0:08:16]} h5 {[%emt 0:08:19]} 13. Qg5 {[%emt 0:01:38]} Ba6 {[%emt 0:07:23]} 14. Rg3 {[%emt 0:01:13]} g6 {[%emt 0:05:16]} 15. Qf6 {[%emt 0:03:37]} Kg8 {[%emt 0:03:27]} 16. f5 {[%emt 0:26:30]} Bxd3 {[%emt 0:08:16]} 17. fxe6 {[%emt 0:00:30]} Nf5 {[%emt 0:06:00]} 18. exf7+ {[%emt 0:09:11]} Qxf7 {[%emt 0:00:31]} 19. Rxg6+ {[%emt 0:00:17]} Ng7 {[%emt 0:00:40]} 20. Qd8+ {[%emt 0:07:42]} Kh7 {[%emt 0:00:30]} 21. Rh6# 1-0

[Event "2nd Irena Warakomska Memorial-A"]
[Site "Suwalki"]
[Date "2018.08.03"]
[Round "4"]
[White "Sliwicka, Alicja"]
[Black "Kuchava, Ana"]
[Result "1-0"]
[ECO "B54"]
[WhiteElo "2293"]
[BlackElo "2124"]
[Annotator "NA"]
[PlyCount "91"]
[EventDate "2018.08.01"]
[EventType "swiss"]
[EventCountry "POL"]
[SourceTitle "playchess.com"]
[Source "ChessBase"]
[SourceQuality "1"]
[TimeControl "40/5400+30:1800+30"]

1. e4 {[%emt 0:00:00]} c5 {[%emt 0:00:00]} 2. Nf3 {[%emt 0:00:00]} d6 {[%emt 0:00:06]} 3. d4 {[%emt 0:00:00]} cxd4 {[%emt 0:00:25]} 4. Nxd4 {[%emt 0:00:00]} Nf6 {[%emt 0:00:16]} 5. f3 {[%emt 0:00:00]} g6 {[%emt 0:02:32]} 6. c4 {[%emt 0:00:28]} Qb6 {[%emt 0:04:42]} 7. Nc3 {[%emt 0:01:44]} Nc6 {[%emt 0:00:57]} 8. Nc2 {[%emt 0:00:53]} Bg7 {[%emt 0:00:08]} 9. Rb1 {[%emt 0:01:39]} Ng4 {[%emt 0:02:49]} 10. Qd2 {[%emt 0:01:02]} Bh6 {[%emt 0:02:13]} 11. f4 {[%emt 0:12:17]} e5 {[%emt 0:04:08]} 12. Nd5 {[%emt 0:05:34]} Qd8 {[%emt 0:00:18]} 13. Be2 {[%emt 0:05:26]} O-O {[%emt 0:07:01]} 14. O-O {[%emt 0:02:38]} exf4 {[%emt 0:03:01]} 15. Bxg4 {[%emt 0:01:55]} Bxg4 {[%emt 0:00:07]} 16. Nxf4 {[%emt 0:03:17]} Re8 {[%emt 0:07:19]} 17. Qf2 {[%emt 0:03:58]} Bg7 {[%emt 0:03:04]} 18. Nd5 {[%emt 0:00:57]} Be6 {[%emt 0:02:21]} 19. Bf4 {[%emt 0:04:08]} Ne5 {[%emt 0:04:31]} 20. Bxe5 {[%emt 0:05:46]} Bxe5 {[%emt 0:00:45]} 21. Nce3 {[%emt 0:00:25]} Rc8 {[%emt 0:08:35]} 22. b3 {[%emt 0:00:52]} Rf8 {[%emt 0:01:56]} 23. Nf6+ {[%emt 0:10:54]} Kg7 {[%emt 0:02:03]} 24. Neg4 {[%emt 0:02:10]} Bxg4 {[%emt 0:07:01]} 25. Nxg4 {[%emt 0:00:20]} Qa5 {[%emt 0:04:44]} 26. Rbd1 {[%emt 0:04:09]} Qc5 {[%emt 0:12:45]} 27. Nxe5 {[%emt 0:01:20]} Qxe5 {[%emt 0:01:56]} 28. Qxa7 {[%emt 0:01:13]} Ra8 {[%emt 0:03:25]} 29. Qf2 {[%emt 0:00:25]} f5 {[%emt 0:02:11]} 30. exf5 {[%emt 0:02:54]} Rxf5 {[%emt 0:00:07]} 31. Qd2 {[%emt 0:01:15]} Qc5+ {[%emt 0:01:51]} 32. Kh1 {[%emt 0:00:33]} Raf8 {[%emt 0:00:14]} 33. Rxf5 {[%emt 0:00:25]} Rxf5 {[%emt 0:00:08]} 34. h3 {[%emt 0:00:32]} Qe5 {[%emt 0:00:58]} 35. Qe1 {[%emt 0:03:16]} Qf6 {[%emt 0:01:08]} 36. Qg3 {[%emt 0:00:54]} Rf4 {[%emt 0:02:03]} 37. Kh2 {[%emt 0:01:29]} h5 {[%emt 0:00:15]} 38. Rd5 {[%emt 0:01:35]} Kh6 {[%emt 0:00:35]} 39. Qe3 {[%emt 0:04:35]} h4 {[%emt 0:01:08]} 40. Rd2 {[%emt 0:00:00]} Kg7 {[%emt 0:00:00]} 41. Re2 {[%emt 0:02:38]} Kh6 {[%emt 0:10:39]} 42. a4 {[%emt 0:02:19]} g5 {[%emt 0:01:42]} 43. Qe6 {[%emt 0:05:37]} Kg7 {[%emt 0:00:51]} 44. Qe8 {[%emt 0:02:39]} Qf8 {[%emt 0:06:34]} 45. Re7+ {[%emt 0:01:53]} Kh6 {[%emt 0:03:09]} 46. Re6+ {[%emt 0:00:32]} 1-0

[Event "2nd Irena Warakomska Memorial-A"]
[Site "Suwalki"]
[Date "2018.08.03"]
[Round "4"]
[White "Chylewski, Patryk"]
[Black "Cukrowski, Filip"]
[Result "1/2-1/2"]
[ECO "A56"]
[WhiteElo "2270"]
[BlackElo "2404"]
[Annotator "NA"]
[PlyCount "108"]
[EventDate "2018.08.01"]
[EventType "swiss"]
[EventCountry "POL"]
[SourceTitle "playchess.com"]
[Source "ChessBase"]
[SourceQuality "1"]
[TimeControl "40/5400+30:1800+30"]

1. d4 {[%emt 0:00:00]} Nf6 {[%emt 0:03:50]} 2. c4 {[%emt 0:00:00]} c5 {[%emt 0:00:13]} 3. Nf3 {[%emt 0:02:24]} g6 {[%emt 0:02:50]} 4. Nc3 {[%emt 0:01:13]} cxd4 {[%emt 0:02:22]} 5. Nxd4 {[%emt 0:00:07]} Bg7 {[%emt 0:00:49]} 6. g3 {[%emt 0:02:37]} Nc6 {[%emt 0:06:36]} 7. Bg2 {[%emt 0:01:04]} O-O {[%emt 0:02:41]} 8. O-O {[%emt 0:01:20]} Nxd4 {[%emt 0:00:17]} 9. Qxd4 {[%emt 0:00:06]} d6 {[%emt 0:00:06]} 10. Qd2 {[%emt 0:03:55]} Be6 {[%emt 0:00:52]} 11. Bxb7 {[%emt 0:07:13]} Rb8 {[%emt 0:00:53]} 12. Bd5 {[%emt 0:00:25]} Nxd5 {[%emt 0:00:06]} 13. Nxd5 {[%emt 0:08:17]} Qd7 {[%emt 0:01:26]} 14. e4 {[%emt 0:10:22]} Rfc8 {[%emt 0:00:55]} 15. Qe2 {[%emt 0:01:14]} Bxd5 {[%emt 0:16:13]} 16. cxd5 {[%emt 0:01:20]} Qc7 {[%emt 0:05:20]} 17. Rb1 {[%emt 0:05:33]} Qc2 {[%emt 0:02:04]} 18. Qxc2 {[%emt 0:01:16]} Rxc2 {[%emt 0:00:09]} 19. Be3 {[%emt 0:03:24]} f5 {[%emt 0:24:35]} 20. exf5 {[%emt 0:05:02]} gxf5 {[%emt 0:00:06]} 21. Bxa7 {[%emt 0:02:59]} Ra8 {[%emt 0:00:09]} 22. Be3 {[%emt 0:03:05]} Bxb2 {[%emt 0:00:53]} 23. f4 {[%emt 0:08:40]} Rxa2 {[%emt 0:03:14]} 24. Rf2 {[%emt 0:01:40]} Rxf2 {[%emt 0:00:43]} 25. Bxf2 {[%emt 0:00:16]} Kf7 {[%emt 0:00:43]} 26. Rd1 {[%emt 0:07:15]} Ba3 {[%emt 0:03:12]} 27. Rd3 {[%emt 0:02:26]} Bb4 {[%emt 0:06:27]} 28. Rb3 {[%emt 0:01:37]} Ba5 {[%emt 0:00:09]} 29. Rd3 {[%emt 0:01:11]} Rc2 {[%emt 0:00:22]} 30. Rd1 {[%emt 0:02:49]} Bb4 {[%emt 0:00:45]} 31. Rd3 {[%emt 0:02:21]} Ke8 {[%emt 0:01:01]} 32. h3 {[%emt 0:07:24]} h5 {[%emt 0:00:34]} 33. Kf1 {[%emt 0:01:26]} Kd7 {[%emt 0:00:33]} 34. Rb3 {[%emt 0:01:45]} Bc5 {[%emt 0:03:47]} 35. Be1 {[%emt 0:00:30]} Kc8 {[%emt 0:00:55]} 36. Rd3 {[%emt 0:03:24]} Rh2 {[%emt 0:00:57]} 37. Bc3 {[%emt 0:00:46]} h4 {[%emt 0:02:29]} 38. Be1 {[%emt 0:01:53]} hxg3 {[%emt 0:04:24]} 39. Rxg3 {[%emt 0:00:12]} Bd4 {[%emt 0:01:10]} 40. Rd3 {[%emt 0:00:00]} Rh1+ {[%emt 0:00:00]} 41. Kg2 {[%emt 0:17:49]} Rg1+ {[%emt 0:08:18]} 42. Kf3 {[%emt 0:02:48]} Rf1+ {[%emt 0:00:09]} 43. Kg3 {[%emt 0:02:17]} Bf6 {[%emt 0:08:03]} 44. Bc3 {[%emt 0:02:07]} Bxc3 {[%emt 0:00:13]} 45. Rxc3+ {[%emt 0:00:04]} Kd7 {[%emt 0:00:04]} 46. Rd3 {[%emt 0:00:29]} Ke8 {[%emt 0:00:20]} 47. Rd4 {[%emt 0:01:45]} Kf7 {[%emt 0:01:16]} 48. Kg2 {[%emt 0:00:11]} Rc1 {[%emt 0:00:14]} 49. Rd3 {[%emt 0:01:05]} Kf6 {[%emt 0:01:32]} 50. Kf2 {[%emt 0:00:27]} Rc4 {[%emt 0:00:57]} 51. Kf3 {[%emt 0:00:44]} Re4 {[%emt 0:01:41]} 52. Rd1 {[%emt 0:00:05]} Rb4 {[%emt 0:00:57]} 53. Rd3 {[%emt 0:00:04]} Rc4 {[%emt 0:01:28]} 54. Kg3 {[%emt 0:00:55]} Rb4 {[%emt 0:09:58]} 1/2-1/2

[Event "2nd Irena Warakomska Memorial-A"]
[Site "Suwalki"]
[Date "2018.08.03"]
[Round "4"]
[White "Bugalski, Michal"]
[Black "Pietruszewski, Marcin"]
[Result "1/2-1/2"]
[ECO "B22"]
[WhiteElo "2263"]
[BlackElo "2208"]
[Annotator "NA"]
[PlyCount "141"]
[EventDate "2018.08.01"]
[EventType "swiss"]
[EventCountry "POL"]
[SourceTitle "playchess.com"]
[Source "ChessBase"]
[SourceQuality "1"]
[TimeControl "40/5400+30:1800+30"]

1. e4 {[%emt 0:00:00]} c5 {[%emt 0:00:00]} 2. c3 {[%emt 0:00:00]} Nf6 {[%emt 0:00:00]} 3. e5 {[%emt 0:00:00]} Nd5 {[%emt 0:00:00]} 4. d4 {[%emt 0:00:00]} cxd4 {[%emt 0:00:00]} 5. Nf3 {[%emt 0:00:17]} d6 {[%emt 0:00:00]} 6. cxd4 {[%emt 0:00:12]} e6 {[%emt 0:00:00]} 7. Bc4 {[%emt 0:01:40]} Be7 {[%emt 0:00:00]} 8. O-O {[%emt 0:00:18]} O-O {[%emt 0:00:00]} 9. Qe2 {[%emt 0:02:28]} b6 {[%emt 0:00:00]} 10. Bd2 {[%emt 0:05:17]} Bb7 {[%emt 0:06:02]} 11. Nc3 {[%emt 0:00:44]} Nd7 {[%emt 0:03:25]} 12. Bxd5 {[%emt 0:05:03]} exd5 {[%emt 0:03:03]} 13. e6 {[%emt 0:00:26]} Nb8 {[%emt 0:00:10]} 14. Rfe1 {[%emt 0:10:24]} Na6 {[%emt 0:04:56]} 15. exf7+ {[%emt 0:12:28]} Rxf7 {[%emt 0:00:10]} 16. Nb5 {[%emt 0:01:24]} h6 {[%emt 0:11:28]} 17. a4 {[%emt 0:07:13]} Nb8 {[%emt 0:14:43]} 18. Ra3 {[%emt 0:16:17]} Bf8 {[%emt 0:12:21]} 19. Qe8 {[%emt 0:17:27]} Nc6 {[%emt 0:02:18]} 20. Rae3 {[%emt 0:02:45]} a6 {[%emt 0:03:01]} 21. Qxd8 {[%emt 0:00:24]} Rxd8 {[%emt 0:00:20]} 22. Na3 {[%emt 0:02:44]} Nb8 {[%emt 0:01:51]} 23. h3 {[%emt 0:04:43]} Bc6 {[%emt 0:20:38]} 24. b3 {[%emt 0:01:10]} Rc7 {[%emt 0:00:34]} 25. a5 {[%emt 0:03:18]} Nd7 {[%emt 0:06:17]} 26. Rc1 {[%emt 0:00:43]} b5 {[%emt 0:01:27]} 27. Nc2 {[%emt 0:01:57]} Bb7 {[%emt 0:00:58]} 28. Nb4 {[%emt 0:00:09]} Rxc1+ {[%emt 0:03:28]} 29. Bxc1 {[%emt 0:00:01]} Rc8 {[%emt 0:00:06]} 30. Bd2 {[%emt 0:01:06]} Nf6 {[%emt 0:00:03]} 31. Rc3 {[%emt 0:00:06]} Rxc3 {[%emt 0:00:05]} 32. Bxc3 {[%emt 0:00:04]} Ne4 {[%emt 0:00:11]} 33. Be1 {[%emt 0:00:04]} g5 {[%emt 0:00:03]} 34. Nh2 {[%emt 0:01:07]} Bg7 {[%emt 0:00:33]} 35. Nc2 {[%emt 0:00:05]} Kf7 {[%emt 0:02:11]} 36. f3 {[%emt 0:00:25]} Nf6 {[%emt 0:02:20]} 37. Kf2 {[%emt 0:00:09]} Ke6 {[%emt 0:00:06]} 38. Ke3 {[%emt 0:00:14]} Nh5 {[%emt 0:00:22]} 39. g3 {[%emt 0:00:31]} Nf6 {[%emt 0:04:24]} 40. Nb4 {[%emt 0:00:00]} h5 {[%emt 0:00:00]} 41. g4 {[%emt 0:08:51]} Kf7 {[%emt 0:16:13]} 42. h4 {[%emt 0:06:11]} Kg6 {[%emt 0:01:54]} 43. hxg5 {[%emt 0:01:10]} Kxg5 {[%emt 0:00:05]} 44. f4+ {[%emt 0:00:05]} Kg6 {[%emt 0:00:04]} 45. g5 {[%emt 0:00:28]} Ne4 {[%emt 0:09:42]} 46. Nf3 {[%emt 0:11:14]} Kf5 {[%emt 0:00:05]} 47. Nh4+ {[%emt 0:00:31]} Kg4 {[%emt 0:02:02]} 48. Ng6 {[%emt 0:01:13]} Nc5 {[%emt 0:05:47]} 49. dxc5 {[%emt 0:04:01]} d4+ {[%emt 0:00:09]} 50. Kd2 {[%emt 0:04:04]} dxc5 {[%emt 0:00:25]} 51. Nd3 {[%emt 0:00:05]} c4 {[%emt 0:00:57]} 52. Nc5 {[%emt 0:01:08]} Bc6 {[%emt 0:00:31]} 53. Ne6 {[%emt 0:01:07]} Be4 {[%emt 0:00:30]} 54. Ne5+ {[%emt 0:01:09]} Bxe5 {[%emt 0:00:24]} 55. fxe5 {[%emt 0:00:02]} cxb3 {[%emt 0:00:36]} 56. Kc1 {[%emt 0:00:46]} h4 57. Nxd4 {[%emt 0:01:21]} h3 {[%emt 0:00:35]} 58. Ne2 {[%emt 0:00:04]} h2 {[%emt 0:00:53]} 59. Ng3 {[%emt 0:00:04]} h1=Q 60. Nxh1 {[%emt 0:00:13]} Bxh1 {[%emt 0:00:34]} 61. g6 {[%emt 0:01:31]} Kf5 {[%emt 0:00:47]} 62. g7 {[%emt 0:00:35]} Bd5 {[%emt 0:00:02]} 63. Bc3 {[%emt 0:00:22]} Be6 {[%emt 0:01:03]} 64. Kd2 {[%emt 0:01:23]} Kg6 {[%emt 0:00:31]} 65. Kd3 {[%emt 0:00:17]} Kxg7 {[%emt 0:00:17]} 66. Kd4 {[%emt 0:00:04]} b4 {[%emt 0:00:45]} 67. Bb2 {[%emt 0:00:05]} Kg6 {[%emt 0:00:15]} 68. Kc5 {[%emt 0:00:07]} Kf5 {[%emt 0:00:22]} 69. Kxb4 {[%emt 0:00:15]} Ke4 {[%emt 0:00:48]} 70. Kc5 {[%emt 0:00:05]} Kf5 {[%emt 0:00:24]} 71. Kb6 {[%emt 0:00:16] Kxe5} 1/2-1/2

[Event "2nd Irena Warakomska Memorial-A"]
[Site "Suwalki"]
[Date "2018.08.03"]
[Round "4"]
[White "Bykovskiy, Oleg"]
[Black "Wacior, Maciej"]
[Result "1-0"]
[ECO "B12"]
[WhiteElo "2263"]
[BlackElo "2081"]
[Annotator "NA"]
[PlyCount "83"]
[EventDate "2018.08.01"]
[EventType "swiss"]
[EventCountry "POL"]
[SourceTitle "playchess.com"]
[Source "ChessBase"]
[SourceQuality "1"]
[TimeControl "40/5400+30:1800+30"]

1. e4 c6 2. d4 d5 3. e5 c5 4. dxc5 Nc6 5. f4 e6 6. Be3 d4 7. Bf2 Bxc5 {[%emt 1:33:30]} 8. Nd2 Nge7 9. a3 O-O 10. Bd3 Nd5 11. Qf3 f5 12. h4 a5 13. Ne2 Ba7 14. g4 Rb8 15. Rg1 Ne3 16. gxf5 exf5 17. Nc4 Be6 18. Nxe3 dxe3 19. Bxe3 Qxh4+ 20. Kd2 Bxe3+ 21. Qxe3 Rfd8 22. Rg5 h6 23. Rg6 Kf7 24. Rag1 Rg8 25. Rxe6 Kxe6 26. Bc4+ Kd7 27. Bxg8 Rxg8 28. Qd3+ Kc7 29. Qxf5 Rd8+ 30. Kc3 Qf2 31. Qe4 a4 32. b4 axb3 33. Rxg7+ Kb8 34. Kxb3 Qb6+ 35. Ka2 Rd1 36. Nc3 Rd4 37. Rg8+ Ka7 {[%emt 0:15:00]} 38. Qe3 {[%emt 1:48:52]} Qc5 39. Rg1 Ka8 40. e6 Nb4+ 41. axb4 Qa7+ 42. Na4 1-0

[Event "2nd Irena Warakomska Memorial-A"]
[Site "Suwalki"]
[Date "2018.08.03"]
[Round "4"]
[White "Tomaszewski, Roman"]
[Black "Walkusz, Witoslaw"]
[Result "0-1"]
[ECO "D90"]
[WhiteElo "2258"]
[BlackElo "2121"]
[Annotator "NA"]
[PlyCount "78"]
[EventDate "2018.08.01"]
[EventType "swiss"]
[EventCountry "POL"]
[SourceTitle "playchess.com"]
[Source "ChessBase"]
[SourceQuality "1"]
[TimeControl "40/5400+30:1800+30"]

1. d4 {[%emt 0:00:00]} Nf6 {[%emt 0:00:00]} 2. c4 {[%emt 0:00:00]} g6 {[%emt 0:00:02]} 3. Nc3 {[%emt 0:02:43]} d5 {[%emt 0:00:14]} 4. Nf3 {[%emt 0:03:34]} Bg7 {[%emt 0:00:06]} 5. cxd5 {[%emt 0:01:30]} Nxd5 {[%emt 0:00:08]} 6. Bd2 {[%emt 0:00:06]} c5 {[%emt 0:04:14]} 7. Rc1 {[%emt 0:01:23]} Nxc3 {[%emt 0:04:23]} 8. Bxc3 {[%emt 0:00:11]} cxd4 {[%emt 0:01:30]} 9. Nxd4 {[%emt 0:01:36]} O-O {[%emt 0:01:31]} 10. e3 {[%emt 0:00:05]} a6 {[%emt 0:09:51]} 11. Be2 {[%emt 0:01:01]} e5 {[%emt 0:10:38]} 12. Nb3 {[%emt 0:14:41]} Qxd1+ {[%emt 0:06:39]} 13. Rxd1 {[%emt 0:16:34]} e4 {[%emt 0:23:03]} 14. Bxg7 {[%emt 0:09:22]} Kxg7 {[%emt 0:00:05]} 15. Nc5 {[%emt 0:31:00]} f5 {[%emt 0:01:47]} 16. f3 {[%emt 0:06:41]} b6 {[%emt 0:04:19]} 17. Na4 {[%emt 0:00:01]} Nd7 {[%emt 0:03:28]} 18. fxe4 {[%emt 0:01:41]} fxe4 {[%emt 0:00:46]} 19. Rd4 {[%emt 0:01:07]} Re8 {[%emt 0:02:58]} 20. O-O {[%emt 0:00:54]} b5 {[%emt 0:01:36]} 21. Nc3 {[%emt 0:01:01]} Nf6 {[%emt 0:00:00]} 22. a3 {[%emt 0:01:53]} Ra7 {[%emt 0:05:11]} 23. h3 {[%emt 0:01:13]} Rd7 {[%emt 0:02:13]} 24. Rxd7+ {[%emt 0:00:23]} Bxd7 {[%emt 0:00:35]} 25. Rd1 {[%emt 0:00:04]} Kf7 {[%emt 0:02:31]} 26. Rd4 {[%emt 0:02:25]} Bc6 {[%emt 0:04:11]} 27. Kf2 {[%emt 0:00:27]} Ke6 {[%emt 0:01:25]} 28. Ke1 {[%emt 0:00:50]} Ke5 {[%emt 0:00:42]} 29. Kd2 {[%emt 0:01:22]} Rb8 {[%emt 0:01:06]} 30. Kc2 {[%emt 0:00:25]} Bd5 {[%emt 0:02:06]} 31. Kc1 {[%emt 0:00:34]} Rc8 {[%emt 0:00:25]} 32. a4 {[%emt 0:00:10]} Bc4 {[%emt 0:00:49]} 33. Bxc4 {[%emt 0:00:44]} Rxc4 {[%emt 0:00:43]} 34. Kd2 {[%emt 0:00:42]} Rxd4+ {[%emt 0:02:45]} 35. exd4+ {[%emt 0:00:01]} Kxd4 {[%emt 0:02:03]} 36. axb5 {[%emt 0:00:01]} axb5 {[%emt 0:00:08]} 37. Nxb5+ {[%emt 0:00:05]} Kc5 {[%emt 0:00:51]} 38. Nc3 {[%emt 0:00:26]} Kd4 {[%emt 0:00:12]} 39. Ne2+ {[%emt 0:00:00]} Ke5 {[%emt 0:00:00]} 0-1

[Event "2nd Irena Warakomska Memorial-A"]
[Site "Suwalki"]
[Date "2018.08.03"]
[Round "4"]
[White "Mulet, Piotr"]
[Black "Fiedorek, Michal"]
[Result "0-1"]
[ECO "E62"]
[WhiteElo "2238"]
[BlackElo "1970"]
[Annotator "NA"]
[PlyCount "118"]
[EventDate "2018.08.01"]
[EventType "swiss"]
[EventCountry "POL"]
[SourceTitle "playchess.com"]
[Source "ChessBase"]
[SourceQuality "1"]
[TimeControl "40/5400+30:1800+30"]

1. c4 {[%emt 0:00:00]} Nf6 {[%emt 0:00:00]} 2. Nc3 {[%emt 0:00:00]} g6 {[%emt 0:00:00]} 3. g3 {[%emt 0:00:00]} Bg7 {[%emt 0:00:07]} 4. Bg2 {[%emt 0:00:00]} O-O {[%emt 0:00:29]} 5. d4 {[%emt 0:04:39]} d6 {[%emt 0:00:23]} 6. Nf3 {[%emt 0:01:31]} Nc6 {[%emt 0:00:13]} 7. O-O {[%emt 0:01:20]} Bg4 {[%emt 0:00:17]} 8. h3 {[%emt 0:00:37]} Bxf3 {[%emt 0:00:06]} 9. Bxf3 {[%emt 0:00:05]} Nd7 {[%emt 0:00:09]} 10. e3 {[%emt 0:08:54]} e5 {[%emt 0:00:45]} 11. d5 {[%emt 0:01:06]} Ne7 {[%emt 0:00:11]} 12. Qc2 {[%emt 0:01:23]} f5 {[%emt 0:00:45]} 13. e4 {[%emt 0:00:36]} f4 {[%emt 0:03:05]} 14. Bd2 {[%emt 0:00:20]} g5 {[%emt 0:04:44]} 15. b4 {[%emt 0:01:18]} Nf6 {[%emt 0:13:04]} 16. c5 {[%emt 0:00:10]} Qd7 {[%emt 0:06:58]} 17. Kg2 {[%emt 0:01:06]} h5 {[%emt 0:06:59]} 18. Bd1 {[%emt 0:00:24]} g4 {[%emt 0:08:11]} 19. h4 {[%emt 0:00:06]} f3+ {[%emt 0:00:40]} 20. Kh2 {[%emt 0:00:35]} Ng6 {[%emt 0:02:30]} 21. Rc1 {[%emt 0:03:19]} Nh7 {[%emt 0:11:46]} 22. c6 {[%emt 0:10:54]} bxc6 {[%emt 0:01:23]} 23. dxc6 {[%emt 0:00:05]} Qd8 {[%emt 0:06:21]} 24. Qb3+ {[%emt 0:01:40]} Kh8 {[%emt 0:00:21]} 25. Qe6 {[%emt 0:00:34]} Nxh4 {[%emt 0:08:52]} 26. Qd7 {[%emt 0:04:48]} Ng6 {[%emt 0:00:48]} 27. Nd5 {[%emt 0:03:08]} Rc8 {[%emt 0:07:54]} 28. Bb3 {[%emt 0:05:09]} Nf6 {[%emt 0:04:29]} 29. Qxd8 {[%emt 0:00:23]} Rfxd8 {[%emt 0:00:09]} 30. Bg5 {[%emt 0:00:06]} Rf8 {[%emt 0:01:03]} 31. Nc3 {[%emt 0:00:42]} Kh7 {[%emt 0:01:57]} 32. Be6 {[%emt 0:04:28]} Rb8 {[%emt 0:02:49]} 33. Rb1 {[%emt 0:00:05]} Ne8 {[%emt 0:02:20]} 34. Nd5 {[%emt 0:03:18]} Bh6 {[%emt 0:01:15]} 35. Bxh6 {[%emt 0:00:33]} Kxh6 {[%emt 0:00:05]} 36. Bf5 {[%emt 0:01:28]} Kg5 {[%emt 0:00:51]} 37. Rb3 {[%emt 0:01:03]} Rxf5 {[%emt 0:03:20]} 38. exf5 {[%emt 0:00:11]} Kxf5 {[%emt 0:00:05]} 39. Ra3 {[%emt 0:02:38]} Ke6 {[%emt 0:00:58]} 40. Ra5 {[%emt 0:00:00]} a6 {[%emt 0:00:00]} 41. Rd1 {[%emt 0:01:12]} Ne7 {[%emt 0:10:26]} 42. Nxe7 {[%emt 0:00:53]} Kxe7 {[%emt 0:00:55]} 43. b5 {[%emt 0:00:24]} axb5 {[%emt 0:05:32]} 44. Rb1 {[%emt 0:00:05]} Rb6 {[%emt 0:01:58]} 45. Raxb5 {[%emt 0:00:05]} Rxc6 {[%emt 0:00:07]} 46. a4 {[%emt 0:00:05]} Rc2 {[%emt 0:01:01]} 47. R1b2 {[%emt 0:00:42]} Rc6 {[%emt 0:01:09]} 48. a5 {[%emt 0:00:18]} Ra6 {[%emt 0:00:11]} 49. Ra2 {[%emt 0:00:06]} Nf6 {[%emt 0:03:33]} 50. Kg1 {[%emt 0:01:42]} Ne4 {[%emt 0:01:37]} 51. Rb7 {[%emt 0:00:47]} Kd7 {[%emt 0:00:25]} 52. Rb8 {[%emt 0:00:06]} d5 {[%emt 0:01:01]} 53. Rh8 {[%emt 0:00:07]} Nf6 {[%emt 0:00:35]} 54. Kf1 {[%emt 0:00:57]} Rc6 {[%emt 0:00:47]} 55. Ke1 {[%emt 0:00:50]} Ne4 {[%emt 0:00:26]} 56. Ra1 {[%emt 0:00:07]} Rc2 {[%emt 0:00:39]} 57. a6 {[%emt 0:01:22]} Re2+ {[%emt 0:00:19]} 58. Kd1 {[%emt 0:00:08]} Nxf2+ {[%emt 0:00:57]} 59. Kc1 {[%emt 0:00:14]} Nd3+ {[%emt 0:00:14]} 0-1